bitfinex/quotes_BTCUSD_20250316
["timestamp","ask_amount","ask_price","bid_price","bid_amount"]
[1742116236252,0.68875042,84387.0,84386.0,0.13244]
[1742116239471,0.70732403,84387.0,84386.0,0.13244]
[1742116240054,0.72958264,84387.0,84386.0,0.13244]
[1742116240419,0.59283264,84387.0,84386.0,0.13244]
[1742116240693,0.33725603,84387.0,84386.0,0.381296]
[1742116242564,0.31499742,84387.0,84386.0,0.381296]
[1742116242770,0.31499742,84387.0,84386.0,0.13244]
[1742116244009,0.31499742,84387.0,84386.0,0.369446]
[1742116244010,0.33357068,84387.0,84386.0,0.369446]
[1742116244515,0.35583066,84387.0,84386.0,0.369446]
[1742116248670,0.33357068,84387.0,84386.0,0.369446]
[1742116248890,0.31499742,84387.0,84386.0,0.369446]
[1742116249762,0.31499742,84387.0,84386.0,0.381296]
[1742116250173,0.01499742,84387.0,84386.0,0.381296]
[1742116250586,0.0003388,84387.0,84386.0,0.381296]
[1742116252100,0.0003388,84387.0,84386.0,1.133816]
[1742116252326,0.01891154,84387.0,84386.0,1.133816]
[1742116252696,0.04116101,84387.0,84386.0,1.133816]
[1742116253117,0.05666912,84387.0,84386.0,1.133816]
[1742116253326,0.03809638,84387.0,84386.0,1.133816]
[1742116254251,0.01584691,84387.0,84386.0,1.133816]
[1742116255817,0.0003388,84387.0,84386.0,1.133816]
[1742116256022,0.01584891,84387.0,84386.0,1.133816]
[1742116256221,0.0003388,84387.0,84386.0,1.133816]
[1742116256759,0.01891161,84387.0,84386.0,1.133816]
[1742116257723,0.0003388,84387.0,84386.0,1.133816]
[1742116259332,0.0003388,84387.0,84386.0,1.003376]
[1742116259538,0.0003388,84387.0,84386.0,1.134056]
[1742116259887,0.01583449,84387.0,84386.0,1.134056]
[1742116260076,0.00644283,84387.0,84386.0,1.134056]
[1742116261137,0.02501584,84387.0,84386.0,1.134056]
[1742116262083,0.00644283,84387.0,84386.0,1.134056]
[1742116265435,0.02501585,84387.0,84386.0,1.134056]
[1742116265838,0.02501585,84387.0,84386.0,1.260856]
[1742116266057,0.02501585,84387.0,84386.0,1.38043103]
[1742116266058,0.00644283,84387.0,84386.0,1.38043103]
[1742116266254,0.0003388,84387.0,84386.0,1.38043103]
[1742116267024,0.0003388,84387.0,84386.0,1.37943103]
[1742116267218,0.0003388,84387.0,84386.0,1.38243103]
[1742116267667,8e-07,84387.0,84386.0,1.38543103]
[1742116267799,8e-07,84387.0,84386.0,1.43543103]
[1742116268241,8e-07,84387.0,84386.0,1.56043103]
[1742116268661,8e-07,84387.0,84386.0,1.86043103]
[1742116268798,8e-07,84387.0,84386.0,1.85643103]
[1742116269233,8e-07,84387.0,84386.0,1.86143103]
[1742116269439,8e-07,84387.0,84386.0,1.85843103]
[1742116269653,8e-07,84387.0,84386.0,1.86243103]
[1742116274648,8e-07,84387.0,84386.0,1.85843103]
[1742116274998,8e-07,84387.0,84386.0,1.85943103]
[1742116275410,8e-07,84387.0,84386.0,1.86543103]
[1742116290464,8e-07,84387.0,84386.0,1.86560043]
[1742116298627,8e-07,84387.0,84386.0,1.90258122]
[1742116312205,8e-07,84387.0,84386.0,1.52010122]
[1742116312412,8e-07,84387.0,84386.0,1.65050122]
[1742116313452,8e-07,84387.0,84386.0,1.75713537]
[1742116315753,8e-07,84387.0,84386.0,1.62673537]
[1742116315953,8e-07,84387.0,84386.0,1.15716034]
[1742116316292,8e-07,84387.0,84386.0,1.25057955]
[1742116317282,8e-07,84387.0,84386.0,1.12017955]
[1742116317614,8e-07,84387.0,84386.0,1.25057955]
[1742116320232,8e-07,84387.0,84386.0,1.1439454]
[1742116324241,8e-07,84387.0,84386.0,1.0135454]
[1742116324444,0.0819008,84387.0,84386.0,1.1439454]
[1742116325203,0.0819008,84387.0,84386.0,1.1379454]
[1742116325427,0.0819008,84387.0,84386.0,1.1319454]
[1742116325621,0.0819008,84387.0,84386.0,1.1379454]
[1742116326301,0.0819008,84387.0,84386.0,1.1429454]
[1742116328313,8e-07,84387.0,84386.0,1.1429454]
[1742116334588,8e-07,84387.0,84386.0,1.26252043]
[1742116346068,8e-07,84387.0,84386.0,1.26256043]
[1742116346448,8e-07,84387.0,84386.0,1.13212043]
[1742116346657,8e-07,84387.0,84386.0,1.26256043]
[1742116356058,8e-07,84387.0,84386.0,1.13212043]
[1742116356398,8e-07,84387.0,84386.0,1.26256043]
[1742116358085,8e-07,84387.0,84386.0,1.0125454]
[1742116358302,8e-07,84387.0,84386.0,1.1429854]
[1742116365831,8e-07,84387.0,84386.0,1.13702293]
[1742116366017,0.01583019,84392.0,84391.0,0.248841]
[1742116367433,0.01583019,84392.0,84391.0,0.253841]
[1742116367726,0.0777,84396.0,84395.0,0.248829]
[1742116368650,0.0777,84396.0,84395.0,1.001149]
[1742116369158,0.0777,84396.0,84395.0,1.004149]
[1742116369765,0.0777,84396.0,84395.0,1.008149]
[1742116371876,0.0780388,84396.0,84395.0,1.008149]
[1742116377006,0.0003388,84396.0,84395.0,1.008149]
[1742116391344,0.0003388,84396.0,84395.0,1.138829]
[1742116414970,0.0003388,84396.0,84395.0,1.138829]
[1742116419355,0.0003388,84396.0,84395.0,1.008149]
[1742116419498,0.0003388,84396.0,84395.0,1.139029]
[1742116420329,0.0003388,84396.0,84395.0,1.008149]
[1742116420645,0.0003388,84396.0,84395.0,1.139029]
[1742116428064,0.01504484,84396.0,84395.0,1.139029]
[1742116428354,0.00839366,84396.0,84395.0,1.139029]
[1742116428585,0.01504484,84396.0,84395.0,1.139029]
[1742116429393,0.0003388,84396.0,84395.0,1.139029]
[1742116433786,0.0003388,84396.0,84395.0,1.138869]
[1742116435040,0.01505258,84396.0,84395.0,1.138869]
[1742116435251,0.0003388,84396.0,84395.0,1.138869]
[1742116437247,0.01505258,84396.0,84395.0,1.138869]
[1742116437465,0.0003388,84396.0,84395.0,1.138869]
[1742116437666,0.01505258,84396.0,84395.0,1.138869]
[1742116437871,0.0003388,84396.0,84395.0,1.138869]
[1742116444211,0.01505258,84396.0,84395.0,1.138869]
[1742116444636,0.0003388,84396.0,84395.0,1.138869]
[1742116446261,0.0003388,84396.0,84395.0,1.008149]
[1742116446488,0.0003388,84396.0,84395.0,1.138709]
[1742116448295,0.0003388,84396.0,84395.0,1.138669]
[1742116450371,2.792e-05,84396.0,84395.0,1.138669]
[1742116456472,2.792e-05,84396.0,84395.0,1.185269]
[1742116464735,2.792e-05,84396.0,84395.0,1.30484403]
[1742116465551,2.792e-05,84396.0,84395.0,1.29784403]
[1742116465942,2.792e-05,84396.0,84395.0,1.30484403]
[1742116467286,2.792e-05,84396.0,84395.0,1.30501343]
[1742116480528,2.792e-05,84396.0,84395.0,1.0083184]
[1742116480729,2.792e-05,84396.0,84395.0,0.7594894]
[1742116480914,2.792e-05,84396.0,84395.0,1.1388384]
[1742116490513,2.792e-05,84396.0,84395.0,1.0083184]
[1742116490645,2.792e-05,84396.0,84395.0,1.1388384]
[1742116491933,2.792e-05,84396.0,84395.0,1.1269894]
[1742116492143,2.792e-05,84396.0,84395.0,1.1388384]
[1742116492575,0.02015183,84396.0,84395.0,1.1388384]
[1742116492761,2.792e-05,84396.0,84395.0,1.1388384]
[1742116493066,2.792e-05,84396.0,84395.0,0.8900094]
[1742116493235,0.23700592,84396.0,84395.0,0.8900094]
[1742116493444,0.25712983,84396.0,84395.0,0.8900094]
[1742116494022,0.25712983,84396.0,84395.0,0.8860094]
[1742116494229,0.25712983,84396.0,84395.0,0.8830094]
[1742116494432,0.02015183,84396.0,84395.0,0.8860094]
[1742116494635,0.02015183,84396.0,84395.0,0.8880094]
[1742116494892,0.02015183,84396.0,84395.0,0.8830094]
[1742116495295,0.02015183,84396.0,84395.0,0.8860094]
[1742116495453,0.02015183,84396.0,84395.0,1.1229894]
[1742116496145,0.02015183,84396.0,84395.0,0.8859294]
[1742116496459,0.02015183,84396.0,84395.0,1.1249094]
[1742116499314,0.02015183,84396.0,84395.0,1.1367584]
[1742116503551,2.792e-05,84396.0,84395.0,1.1249094]
[1742116503751,2.792e-05,84396.0,84395.0,1.1367584]
[1742116504166,0.02015076,84396.0,84395.0,1.1367584]
[1742116504329,2.792e-05,84396.0,84395.0,1.1367584]
[1742116504532,0.02015076,84396.0,84395.0,1.1367584]
[1742116504732,2.792e-05,84396.0,84395.0,1.1367584]
[1742116504934,0.02015076,84396.0,84395.0,1.1367584]
[1742116505133,2.792e-05,84396.0,84395.0,1.1367584]
[1742116506164,2.792e-05,84396.0,84395.0,0.8879294]
[1742116506364,0.23700592,84396.0,84395.0,0.8879294]
[1742116506569,0.02017079,84396.0,84395.0,0.8879294]
[1742116506983,0.02017079,84396.0,84395.0,1.1249094]
[1742116507196,0.02017079,84396.0,84395.0,1.1229094]
[1742116507396,0.02017079,84396.0,84395.0,0.9914694]
[1742116507600,0.02017079,84396.0,84395.0,1.1239094]
[1742116507993,0.02017079,84396.0,84395.0,1.1357584]
[1742116516848,0.02017079,84396.0,84395.0,0.8869294]
[1742116517061,0.56899679,84396.0,84395.0,0.7564894]
[1742116517223,0.65069679,84396.0,84395.0,0.8869294]
[1742116517425,0.65069679,84396.0,84395.0,0.7564894]
[1742116517632,0.69829679,84396.0,84395.0,0.8869694]
[1742116518190,0.69829679,84396.0,84395.0,0.8849694]
[1742116519025,0.69829679,84396.0,84395.0,0.8829694]
[1742116519226,0.69829679,84396.0,84395.0,0.8849694]
[1742116519960,0.71686975,84396.0,84395.0,0.8849694]
[1742116521044,0.69829679,84396.0,84395.0,0.8849694]
[1742116521834,0.69829679,84396.0,84395.0,0.7544894]
[1742116522481,0.69829679,84396.0,84395.0,0.0021694]
[1742116524070,0.71687099,84396.0,84395.0,0.0021694]
[1742116525074,0.71687099,84396.0,84395.0,0.0011694]
[1742116525903,0.71687099,84396.0,84395.0,0.0001694]
[1742116528564,0.69829679,84396.0,84395.0,0.0001694]
[1742116534882,0.56899679,84396.0,84395.0,0.0001694]
[1742116540099,0.58757039,84396.0,84395.0,0.0001694]
[1742116541204,0.56899679,84396.0,84395.0,0.0001694]
[1742116544267,0.5875705,84396.0,84395.0,0.0001694]
[1742116548987,0.56899679,84396.0,84395.0,0.0001694]
[1742116550868,0.65169679,84396.0,84395.0,0.0001694]
[1742116552193,0.67027053,84396.0,84395.0,0.0001694]
[1742116553390,0.65169679,84396.0,84395.0,0.0001694]
[1742116555151,0.56899679,84396.0,84395.0,0.0001694]
[1742116556296,0.58757047,84396.0,84395.0,0.0001694]
[1742116557612,0.56899679,84396.0,84395.0,0.0001694]
[1742116560956,0.58757046,84396.0,84395.0,0.0001694]
[1742116562049,0.56899679,84396.0,84395.0,0.0001694]
[1742116565087,0.58757073,84396.0,84395.0,0.0001694]
[1742116566860,0.57945565,84396.0,84395.0,0.0001694]
[1742116567096,0.56742786,84396.0,84395.0,0.0001694]
[1742116567308,0.58898761,84396.0,84395.0,0.0001694]
[1742116569557,0.57041367,84396.0,84395.0,0.0001694]
[1742116572764,0.58898702,84396.0,84395.0,0.0001694]
[1742116573837,0.57041367,84396.0,84395.0,0.0001694]
[1742116576801,0.58898673,84396.0,84395.0,0.0001694]
[1742116577892,0.57041367,84396.0,84395.0,0.0001694]
[1742116581267,0.58898671,84396.0,84395.0,0.0001694]
[1742116582482,0.57041367,84396.0,84395.0,0.0001694]
[1742116585673,0.58898663,84396.0,84395.0,0.0001694]
[1742116586675,0.57041367,84396.0,84395.0,0.0001694]
[1742116590089,0.58898766,84396.0,84395.0,0.0001694]
[1742116591171,0.57041367,84396.0,84395.0,0.0001694]
[1742116594255,0.58898705,84396.0,84395.0,0.0001694]
[1742116633466,0.57041367,84396.0,84395.0,0.0001694]
[1742116636854,0.66898697,84396.0,84395.0,0.0001694]
[1742116637995,0.65041367,84396.0,84395.0,0.0001694]
[1742116638494,1.06831367,84396.0,84395.0,0.0001694]
[1742116641164,1.08688771,84396.0,84395.0,0.0001694]
[1742116642310,1.06831367,84396.0,84395.0,0.0001694]
[1742116646887,1.00688775,84396.0,84395.0,0.0001694]
[1742116665492,0.98831367,84396.0,84395.0,0.0001694]
[1742116668896,1.00688666,84396.0,84395.0,0.0470694]
[1742116669857,0.98831367,84396.0,84395.0,0.0470694]
[1742116670737,0.73948767,84396.0,84395.0,0.0470694]
[1742116670902,0.97646567,84396.0,84395.0,0.0470694]
[1742116671652,0.98831367,84396.0,84395.0,0.0470694]
[1742116672309,0.73948767,84396.0,84395.0,0.0470694]
[1742116673613,0.55856567,84396.0,84395.0,0.0470694]
[1742116674380,0.32158767,84396.0,84395.0,0.0470694]
[1742116674576,0.57713814,84396.0,84395.0,0.0470694]
[1742116675494,0.34016014,84396.0,84395.0,0.0470694]
[1742116675849,0.34016014,84396.0,84395.0,0.2840494]
[1742116676244,0.04016014,84396.0,84395.0,0.3598494]
[1742116676441,2.792e-05,84396.0,84395.0,0.3716984]
[1742116677612,2.792e-05,84396.0,84395.0,0.3756984]
[1742116678732,2.792e-05,84396.0,84395.0,0.3786984]
[1742116680201,2.792e-05,84396.0,84395.0,0.3746984]
[1742116680714,2.792e-05,84396.0,84395.0,0.3786984]
[1742116680900,2.792e-05,84396.0,84395.0,0.3756984]
[1742116681059,2.792e-05,84396.0,84395.0,0.3716984]
[1742116681262,2.792e-05,84396.0,84395.0,0.3756984]
[1742116681472,2.792e-05,84396.0,84395.0,0.3716984]
[1742116681899,2.792e-05,84396.0,84395.0,0.3776984]
[1742116682482,2.792e-05,84396.0,84395.0,0.3836984]
[1742116682682,2.792e-05,84396.0,84395.0,0.3776984]
[1742116683106,2.792e-05,84396.0,84395.0,0.3716984]
[1742116683985,2.792e-05,84396.0,84395.0,0.3776984]
[1742116684185,2.792e-05,84396.0,84395.0,0.3836984]
[1742116688466,2.792e-05,84396.0,84395.0,0.4386584]
[1742116688580,2.792e-05,84396.0,84395.0,0.3078984]
[1742116688790,2.792e-05,84396.0,84395.0,0.4386584]
[1742116689313,2.792e-05,84396.0,84395.0,0.4326584]
[1742116689511,2.792e-05,84396.0,84395.0,0.4386584]
[1742116689895,2.792e-05,84396.0,84395.0,0.4386584]
[1742116690748,2.792e-05,84396.0,84395.0,0.3917584]
[1742116691135,2.792e-05,84396.0,84395.0,0.3857584]
[1742116691779,2.792e-05,84396.0,84395.0,0.3907584]
[1742116692826,2.792e-05,84396.0,84395.0,1.1431184]
[1742116695081,2.792e-05,84396.0,84395.0,1.1321184]
[1742116695480,2.792e-05,84396.0,84395.0,1.1411184]
[1742116711966,2.792e-05,84396.0,84395.0,1.16336492]
[1742116716037,2.792e-05,84396.0,84395.0,1.03260492]
[1742116716239,2.792e-05,84396.0,84395.0,1.16412492]
[1742116717183,2.792e-05,84396.0,84395.0,1.03260492]
[1742116717383,2.792e-05,84396.0,84395.0,1.16408492]
[1742116718657,2.792e-05,84396.0,84395.0,1.1418384]
[1742116735151,0.02285962,84396.0,84395.0,1.1418384]
[1742116735341,2.792e-05,84396.0,84395.0,1.1418384]
[1742116735551,0.02285962,84396.0,84395.0,1.1418384]
[1742116735829,2.792e-05,84396.0,84395.0,1.1418384]
[1742116736032,0.02285962,84396.0,84395.0,1.1418384]
[1742116736253,2.792e-05,84396.0,84395.0,1.1418384]
[1742116736734,0.02285962,84396.0,84395.0,1.1299894]
[1742116736936,2.792e-05,84396.0,84395.0,1.1299894]
[1742116737141,0.02285962,84396.0,84395.0,1.1418384]
[1742116737366,2.792e-05,84396.0,84395.0,1.1418384]
[1742116737596,0.02285962,84396.0,84395.0,1.1418384]
[1742116737790,2.792e-05,84396.0,84395.0,1.1418384]
[1742116737908,0.02285962,84396.0,84395.0,1.1418384]
[1742116742956,2.792e-05,84396.0,84395.0,1.1418384]
[1742116743721,0.61760592,84396.0,84395.0,0.7615294]
[1742116743922,0.70024252,84396.0,84395.0,0.8928094]
[1742116744762,0.71188523,84396.0,84395.0,0.8888094]
[1742116744971,0.71188523,84396.0,84395.0,0.7525294]
[1742116745206,0.71188523,84396.0,84395.0,0.002]
[1742116745419,0.5308346,84393.0,84392.0,0.1316094]
[1742116745629,0.6114346,84393.0,84392.0,0.1316094]
[1742116746011,0.548864,84383.0,84382.0,8e-07]
[1742116746203,0.537045,84372.0,84371.0,8.4e-07]
[1742116746405,0.011853,84366.0,84364.0,0.13176]
[1742116746612,0.548923,84363.0,84362.0,0.198444]
[1742116746814,0.548923,84363.0,84351.0,0.0009694]
[1742116746815,0.548956,84352.0,84351.0,7.8e-07]
[1742116747214,0.57161309,84352.0,84351.0,7.8e-07]
[1742116747566,0.65221309,84352.0,84351.0,7.8e-07]
[1742116748088,0.65221309,84352.0,84351.0,0.00600078]
[1742116748289,0.65221309,84352.0,84351.0,0.00300078]
[1742116748699,0.65221309,84352.0,84351.0,0.00200078]
[1742116748926,0.65221309,84352.0,84351.0,0.00400078]
[1742116750163,0.65221309,84352.0,84351.0,0.00200078]
[1742116750556,0.65221309,84352.0,84351.0,0.00100078]
[1742116751133,0.65221309,84352.0,84351.0,0.00200078]
[1742116751276,0.65221309,84352.0,84351.0,7.8e-07]
[1742116751475,0.67079622,84352.0,84351.0,7.8e-07]
[1742116752583,0.67179622,84352.0,84351.0,7.8e-07]
[1742116754090,0.68079889,84352.0,84351.0,7.8e-07]
[1742116755803,0.67979889,84352.0,84351.0,7.8e-07]
[1742116756012,0.68079889,84352.0,84351.0,7.8e-07]
[1742116758908,0.67979889,84352.0,84351.0,7.8e-07]
[1742116759114,0.68279889,84352.0,84351.0,7.8e-07]
[1742116760743,0.67979889,84352.0,84351.0,7.8e-07]
[1742116760938,0.68279889,84352.0,84351.0,7.8e-07]
[1742116761452,0.67979889,84352.0,84351.0,7.8e-07]
[1742116761833,0.68379889,84352.0,84351.0,7.8e-07]
[1742116762255,0.67979889,84352.0,84351.0,7.8e-07]
[1742116763651,0.68479889,84352.0,84351.0,7.8e-07]
[1742116764015,0.68513789,84352.0,84351.0,7.8e-07]
[1742116764219,0.68013789,84352.0,84351.0,7.8e-07]
[1742116764570,0.68513789,84352.0,84351.0,7.8e-07]
[1742116765005,0.68013789,84352.0,84351.0,7.8e-07]
[1742116765528,0.68513789,84352.0,84351.0,7.8e-07]
[1742116765822,0.68119464,84352.0,84351.0,7.8e-07]
[1742116766744,0.67619464,84352.0,84351.0,7.8e-07]
[1742116766944,0.67919464,84352.0,84351.0,7.8e-07]
[1742116767148,0.68419464,84352.0,84351.0,7.8e-07]
[1742116767305,0.68119464,84352.0,84351.0,7.8e-07]
[1742116767493,0.67919464,84352.0,84351.0,7.8e-07]
[1742116767892,0.68119464,84352.0,84351.0,7.8e-07]
[1742116768283,0.67919464,84352.0,84351.0,7.8e-07]
[1742116768687,0.68419464,84352.0,84351.0,7.8e-07]
[1742116779064,0.73239464,84352.0,84351.0,7.8e-07]
[1742116779235,0.630598,84338.0,84337.0,1.1e-07]
[1742116779640,0.64919102,84338.0,84337.0,1.1e-07]
[1742116780651,0.65219102,84338.0,84337.0,0.00041421]
[1742116780851,0.65419102,84338.0,84337.0,0.00041421]
[1742116781865,0.65419102,84338.0,84337.0,2.1e-07]
[1742116782069,0.70409102,84338.0,84337.0,2.1e-07]
[1742116782558,0.72268089,84338.0,84337.0,2.1e-07]
[1742116783162,0.72068089,84338.0,84337.0,2.1e-07]
[1742116783601,0.72168089,84338.0,84337.0,2.1e-07]
[1742116783777,0.69909102,84338.0,84337.0,2.1e-07]
[1742116784147,0.70409102,84338.0,84337.0,2.1e-07]
[1742116784632,0.69909102,84338.0,84337.0,2.1e-07]
[1742116784775,0.70809102,84338.0,84337.0,2.1e-07]
[1742116787014,0.70809102,84338.0,84337.0,0.00016961]
[1742116787667,1.17599102,84338.0,84337.0,6.1e-07]
[1742116788392,1.3051069,84338.0,84337.0,6.1e-07]
[1742116788768,1.3101069,84338.0,84337.0,6.1e-07]
[1742116789141,1.19053187,84338.0,84337.0,6.1e-07]
[1742116789342,1.18553187,84338.0,84337.0,6.1e-07]
[1742116790206,1.18153187,84338.0,84337.0,6.1e-07]
[1742116790838,1.18553187,84338.0,84337.0,6.1e-07]
[1742116791032,1.18153187,84338.0,84337.0,6.1e-07]
[1742116791243,1.3011069,84338.0,84337.0,6.1e-07]
[1742116791454,1.3111069,84338.0,84337.0,6.1e-07]
[1742116791984,1.3061069,84338.0,84337.0,6.1e-07]
[1742116792116,1.3111069,84338.0,84337.0,6.1e-07]
[1742116792318,1.3107069,84338.0,84337.0,6.1e-07]
[1742116794882,1.32929806,84338.0,84337.0,6.1e-07]
[1742116796041,0.549074,84312.0,84300.0,0.13212]
[1742116796240,0.549074,84312.0,84311.0,0.00092426]
[1742116796452,0.5675522,84312.0,84311.0,0.00092426]
[1742116797003,0.586144,84312.0,84311.0,0.00092426]
[1742116797723,0.587144,84312.0,84311.0,0.00092426]
[1742116798182,0.588144,84312.0,84311.0,0.00092426]
[1742116798681,0.587144,84312.0,84311.0,0.00092426]
[1742116798918,0.589144,84312.0,84311.0,0.00092426]
[1742116799109,0.60085323,84312.0,84311.0,0.00092426]
[1742116799311,0.59985323,84312.0,84311.0,0.00092426]
[1742116799453,0.60085323,84312.0,84311.0,0.00092426]
[1742116801687,0.60989762,84312.0,84311.0,0.00092426]
[1742116804938,0.03318743,84312.0,84311.0,0.37540026]
[1742116805163,0.26378323,84312.0,84311.0,0.12632426]
[1742116805340,0.28225733,84312.0,84311.0,0.12632426]
[1742116805521,0.58225733,84312.0,84311.0,0.12632426]
[1742116805924,0.58225733,84312.0,84311.0,0.25820426]
[1742116806221,0.58125733,84312.0,84311.0,0.17970426]
[1742116806678,0.57925733,84312.0,84311.0,0.17970426]
[1742116808359,0.59784815,84312.0,84311.0,0.17970426]
[1742116809366,0.57925733,84312.0,84311.0,0.17970426]
[1742116810555,0.57925733,84312.0,84311.0,0.17987366]
[1742116810747,0.33018333,84312.0,84311.0,0.17987366]
[1742116810946,0.33018333,84312.0,84311.0,0.41708966]
[1742116811155,0.33018333,84312.0,84311.0,0.49948966]
[1742116812524,0.56739733,84312.0,84311.0,0.26227366]
[1742116814272,0.33018333,84312.0,84311.0,0.26227366]
[1742116814468,0.57925733,84312.0,84311.0,0.26227366]
[1742116815722,0.56739733,84312.0,84311.0,0.26227366]
[1742116816579,0.58598793,84312.0,84311.0,0.26227366]
[1742116817245,0.59784793,84312.0,84311.0,0.13297366]
[1742116819255,0.59784793,84312.0,84311.0,0.00109366]
[1742116819482,0.57925733,84312.0,84311.0,0.00109366]
[1742116820753,0.58225733,84312.0,84311.0,0.00109366]
[1742116822583,0.58225733,84312.0,84311.0,6.6e-07]
[1742116822784,0.549076,84311.0,84310.0,6e-08]
[1742116822967,0.55982356,84311.0,84310.0,4.14e-05]
[1742116824324,0.56182356,84311.0,84310.0,4.14e-05]
[1742116824559,0.56382356,84311.0,84310.0,4.14e-05]
[1742116824877,0.56182356,84311.0,84310.0,4.14e-05]
[1742116825276,0.56482356,84311.0,84310.0,4.14e-05]
[1742116828129,0.58341763,84311.0,84310.0,4.14e-05]
[1742116830760,0.58141763,84311.0,84310.0,4.14e-05]
[1742116831264,0.58441763,84311.0,84310.0,4.14e-05]
[1742116832842,0.549109,84300.0,84299.0,8e-07]
[1742116833083,0.011861,84303.0,84287.0,1e-07]
[1742116833084,0.011864,84288.0,84287.0,1e-07]
[1742116833402,0.011864,84288.0,84287.0,0.0001245]
[1742116833403,0.56067024,84288.0,84287.0,0.0001245]
[1742116833619,0.56067024,84288.0,84287.0,5e-07]
[1742116834601,0.56067024,84288.0,84271.0,0.0008]
[1742116834602,0.549192,84272.0,84271.0,5e-07]
[1742116834802,0.56072649,84272.0,84271.0,5e-07]
[1742116835184,0.57261014,84272.0,84271.0,5e-07]
[1742116835873,0.57361014,84272.0,84271.0,5e-07]
[1742116836486,0.57261014,84272.0,84271.0,5e-07]
[1742116837707,0.57661014,84272.0,84271.0,5e-07]
[1742116838302,0.57461014,84272.0,84271.0,5e-07]
[1742116838672,0.57661014,84272.0,84271.0,5e-07]
[1742116840909,0.59521169,84272.0,84271.0,5e-07]
[1742116844573,0.25286049,84272.0,84271.0,5e-07]
[1742116844908,0.01553449,84272.0,84271.0,5e-07]
[1742116845044,0.02720382,84272.0,84271.0,5e-07]
[1742116845386,0.02720382,84272.0,84271.0,0.4279755]
[1742116845387,0.01553449,84272.0,84271.0,0.4279755]
[1742116845584,0.004,84272.0,84271.0,0.4279755]
[1742116845966,0.004,84272.0,84271.0,0.4161095]
[1742116846158,0.01168291,84272.0,84271.0,0.2830295]
[1742116846344,0.02320529,84272.0,84271.0,0.4161095]
[1742116846993,0.02120529,84272.0,84271.0,0.4161095]
[1742116847231,0.01920529,84272.0,84271.0,0.416279]
[1742116847421,0.02020529,84272.0,84271.0,0.416279]
[1742116848428,0.31920529,84272.0,84271.0,0.13325]
[1742116848612,0.55653129,84272.0,84271.0,0.13325]
[1742116848947,0.55653129,84272.0,84271.0,0.00017]
[1742116849123,0.56839729,84272.0,84271.0,0.13321]
[1742116849329,0.56839729,84272.0,84271.0,0.00017]
[1742116849489,0.56839729,84272.0,84271.0,0.13321]
[1742116854414,0.56839729,84272.0,84271.0,0.00017]
[1742116855427,0.5869963,84272.0,84271.0,0.00017]
[1742116858102,0.5751303,84272.0,84271.0,0.00017]
[1742116858876,0.5754695,84272.0,84271.0,0.00017]
[1742116859287,0.5873355,84272.0,84271.0,0.00017]
[1742116860296,0.5873355,84272.0,84271.0,0.13293]
[1742116861141,0.0381435,84272.0,84271.0,0.13293]
[1742116861338,0.5754695,84272.0,84271.0,0.13293]
[1742116861572,0.3381435,84272.0,84271.0,0.370259]
[1742116861724,0.3381435,84272.0,84271.0,0.13293]
[1742116862072,0.5754695,84272.0,84271.0,0.13293]
[1742116862475,0.3381435,84272.0,84271.0,0.13293]
[1742116862700,0.5754695,84272.0,84271.0,0.13293]
[1742116864014,0.5873355,84272.0,84271.0,0.13293]
[1742116865418,0.5873355,84272.0,84271.0,0.13285]
[1742116866749,0.3381435,84272.0,84271.0,0.370179]
[1742116866877,0.3381435,84272.0,84271.0,0.507645]
[1742116867102,0.3381435,84272.0,84271.0,0.495779]
[1742116867303,0.3381435,84272.0,84271.0,0.25845]
[1742116867509,0.3381435,84272.0,84271.0,0.495779]
[1742116869363,0.3381435,84272.0,84271.0,0.13285]
[1742116869992,0.5754695,84272.0,84271.0,0.00017]
[1742116870192,0.5754695,84272.0,84271.0,0.13277]
[1742116870931,0.3381435,84272.0,84271.0,0.13277]
[1742116871140,0.3381435,84272.0,84271.0,0.370099]
[1742116874492,0.3381435,84272.0,84271.0,0.36976556]
[1742116878410,0.3381435,84272.0,84271.0,0.38163156]
[1742116878590,0.31893821,84272.0,84271.0,0.38163156]
[1742116878988,0.33814752,84272.0,84271.0,0.38163156]
[1742116880368,0.33814752,84272.0,84271.0,0.13243656]
[1742116881037,0.33814752,84272.0,84271.0,0.38163156]
[1742116881871,0.33814752,84272.0,84271.0,0.13243656]
[1742116882691,0.3,84271.0,84267.0,8e-05]
[1742116882897,0.549204,84268.0,84267.0,8e-05]
[1742116883106,0.549207,84267.0,84266.0,4e-07]
[1742116883428,0.629807,84267.0,84266.0,4e-07]
[1742116884770,1.094907,84267.0,84266.0,4e-07]
[1742116885153,1.10367044,84267.0,84266.0,4e-07]
[1742116885582,1.10667044,84267.0,84266.0,4e-07]
[1742116885984,1.10967044,84267.0,84266.0,4e-07]
[1742116886402,1.12827528,84267.0,84266.0,4e-07]
[1742116886610,1.1329257,84267.0,84266.0,4e-07]
[1742116886961,1.1369257,84267.0,84266.0,4e-07]
[1742116887774,1.15146655,84267.0,84266.0,4e-07]
[1742116888779,1.14746655,84267.0,84266.0,4e-07]
[1742116888947,1.14946655,84267.0,84266.0,4e-07]
[1742116889346,1.15346655,84267.0,84266.0,4e-07]
[1742116889552,1.20846655,84267.0,84266.0,4e-07]
[1742116889824,1.32804158,84267.0,84266.0,4e-07]
[1742116890104,1.20846655,84267.0,84266.0,4e-07]
[1742116890706,1.20446655,84267.0,84266.0,4e-07]
[1742116890939,1.15446655,84267.0,84266.0,4e-07]
[1742116891090,1.20946655,84267.0,84266.0,4e-07]
[1742116892390,1.19946655,84267.0,84266.0,4e-07]
[1742116892604,1.19446655,84267.0,84266.0,4e-07]
[1742116892809,1.18586171,84267.0,84266.0,4e-07]
[1742116893006,1.13586171,84267.0,84266.0,4e-07]
[1742116893412,1.13086171,84267.0,84266.0,4e-07]
[1742116893651,1.13586171,84267.0,84266.0,4e-07]
[1742116894622,1.13620091,84267.0,84266.0,4e-07]
[1742116896072,1.20480735,84267.0,84266.0,4e-07]
[1742116896476,1.33740735,84267.0,84266.0,4e-07]
[1742116897134,1.33094591,84267.0,84266.0,4e-07]
[1742116897365,1.28094591,84267.0,84266.0,4e-07]
[1742116898919,1.33094591,84267.0,84266.0,4e-07]
[1742116899400,1.28094591,84267.0,84266.0,4e-07]
[1742116899603,1.33094591,84267.0,84266.0,4e-07]
[1742116899806,1.28094591,84267.0,84266.0,4e-07]
[1742116900472,1.29955265,84267.0,84266.0,4e-07]
[1742116900876,1.28094591,84267.0,84266.0,4e-07]
[1742116903620,1.29955181,84267.0,84266.0,4e-07]
[1742116905937,1.28501096,84267.0,84266.0,4e-07]
[1742116906304,1.07181096,84267.0,84266.0,4e-07]
[1742116909309,0.72461096,84267.0,84266.0,4e-07]
[1742116909470,0.70600506,84267.0,84266.0,4e-07]
[1742116909825,1.00600506,84267.0,84266.0,4e-07]
[1742116912246,0.57934162,84267.0,84266.0,4e-07]
[1742116914014,0.59794518,84267.0,84266.0,4e-07]
[1742116917730,0.60693037,84267.0,84266.0,4e-07]
[1742116918511,0.59794518,84267.0,84266.0,4e-07]